bitfinex/quotes_BTCUSD_20260110
["timestamp","ask_amount","ask_price","bid_price","bid_amount"]
[1768065917352,0.05382067,90749.0,90745.0,0.01101989]
[1768065917977,0.05382067,90749.0,90743.0,0.01102013]
[1768065918150,0.05382067,90749.0,90745.0,0.01101989]
[1768065919303,0.00519269,90749.0,90747.0,0.04571331]
[1768065923037,0.00519269,90749.0,90747.0,0.04564503]
[1768065924827,0.00519269,90749.0,90747.0,0.04549041]
[1768065930507,0.0001519,90755.0,90747.0,0.05651005]
[1768065930694,0.0001519,90755.0,90748.0,0.01101952]
[1768065931193,0.0001519,90755.0,90747.0,0.01101964]
[1768065931617,0.0001519,90755.0,90745.0,0.01101989]
[1768065932034,0.0001519,90755.0,90746.0,0.01101976]
[1768065932366,0.0001519,90755.0,90745.0,0.01101989]
[1768065932513,0.0001519,90755.0,90746.0,0.01101976]
[1768065932711,0.0001519,90755.0,90745.0,0.01101989]
[1768065933717,0.0001519,90755.0,90746.0,0.01101976]
[1768065933979,0.0001519,90755.0,90745.0,0.01101989]
[1768065934819,0.0001519,90755.0,90746.0,0.01101976]
[1768065935247,0.0001519,90755.0,90747.0,0.01101964]
[1768065935899,0.0001519,90755.0,90746.0,0.01101976]
[1768065936860,0.0001519,90755.0,90746.0,0.05971201]
[1768065937266,0.0001519,90755.0,90746.0,0.04869225]
[1768065937474,0.0001519,90755.0,90746.0,0.05971201]
[1768065937703,0.0001519,90755.0,90746.0,0.05955739]
[1768065937973,0.0001519,90755.0,90746.0,0.04853763]
[1768065938188,0.0001519,90755.0,90746.0,0.04838303]
[1768065938389,0.0001519,90755.0,90746.0,0.05940279]
[1768065938549,0.0001519,90755.0,90746.0,0.05924819]
[1768065939406,0.0001519,90755.0,90746.0,0.04822843]
[1768065939708,0.0001519,90755.0,90746.0,0.05924819]
[1768065941117,0.0001519,90755.0,90746.0,0.04822843]
[1768065946702,0.0001519,90755.0,90746.0,0.05924819]
[1768065946824,0.0001519,90755.0,90746.0,0.04822843]
[1768065947216,0.0001519,90755.0,90746.0,0.05924819]
[1768065947624,0.0001519,90755.0,90746.0,0.04822843]
[1768065948664,0.02016699,90754.0,90746.0,0.01101976]
[1768065949268,0.02016699,90754.0,90747.0,0.01101964]
[1768065949471,0.02016699,90754.0,90746.0,0.01101976]
[1768065950624,0.0001519,90755.0,90746.0,0.01101976]
[1768065950923,0.0001519,90755.0,90746.0,0.04869225]
[1768065953305,0.01117009,90755.0,90746.0,0.05971201]
[1768065953500,0.01117009,90755.0,90746.0,0.04869225]
[1768065954713,0.0001519,90755.0,90746.0,0.04869225]
[1768065955151,0.01117009,90754.0,90746.0,0.04869225]
[1768065964906,0.000999,90746.0,90740.0,0.04809746]
[1768065965103,0.02218888,90754.0,90740.0,0.04809746]
[1768065965818,0.02218888,90754.0,90740.0,0.05911795]
[1768065966125,0.02218888,90754.0,90740.0,0.04809746]
[1768065966326,0.02218888,90754.0,90740.0,0.05911795]
[1768065966563,0.02218888,90754.0,90740.0,0.04809746]
[1768065966727,0.01117009,90754.0,90742.0,0.04809746]
[1768065967375,0.01101891,90753.0,90742.0,0.04809746]
[1768065967832,0.01101879,90754.0,90742.0,0.04809746]
[1768065968158,0.04424374,90755.0,90742.0,0.04809746]
[1768065969102,0.0481748,90754.0,90740.0,0.01102049]
[1768065969278,0.0481748,90754.0,90741.0,0.01102037]
[1768065969499,0.05919359,90754.0,90739.0,0.01102061]
[1768065969903,0.0481748,90752.0,90739.0,0.01102061]
[1768065970104,0.0481748,90752.0,90740.0,0.01102049]
[1768065971671,0.01102074,90753.0,90741.0,0.04809746]
[1768065971871,0.01102074,90753.0,90741.0,0.05911783]
[1768065974468,0.01102074,90753.0,90741.0,0.04809746]
[1768065974688,0.01102074,90753.0,90741.0,0.05911783]
[1768065975448,0.01102074,90753.0,90741.0,0.04809746]
[1768065975676,0.01102074,90753.0,90741.0,0.05911783]
[1768065976056,0.01102074,90753.0,90741.0,0.04809746]
[1768065976259,0.01102074,90753.0,90741.0,0.05911783]
[1768065977362,0.01102074,90753.0,90741.0,0.04809746]
[1768065977561,0.01102074,90753.0,90741.0,0.05911783]
[1768065978337,0.01102074,90753.0,90741.0,0.04809746]
[1768065979076,0.01102074,90753.0,90739.0,0.01102061]
[1768065979251,0.01102074,90753.0,90738.0,0.01102074]
[1768065979470,0.01102074,90753.0,90739.0,0.01102061]
[1768065979471,0.02203965,90753.0,90739.0,0.01102061]
[1768065979660,0.01102074,90753.0,90739.0,0.01102061]
[1768065980455,0.01102074,90753.0,90740.0,0.01102049]
[1768065981137,0.01102074,90753.0,90739.0,0.01102061]
[1768065981527,0.01102074,90753.0,90740.0,0.01102049]
[1768065981729,0.01102074,90753.0,90739.0,0.01102061]
[1768065981928,0.01102074,90753.0,90740.0,0.01102049]
[1768065982704,0.01102074,90753.0,90741.0,0.01102037]
[1768065983262,0.01102074,90753.0,90742.0,0.01102025]
[1768065983462,0.01102074,90753.0,90741.0,0.01102037]
[1768065983691,0.01102074,90753.0,90742.0,0.01102025]
[1768065984070,0.01102074,90753.0,90741.0,0.01102037]
[1768065984295,0.01102074,90753.0,90741.0,0.04809746]
[1768065986937,0.01102074,90753.0,90741.0,0.05911783]
[1768065988255,0.01102074,90753.0,90741.0,0.04809746]
[1768065989130,0.01102074,90753.0,90741.0,0.05911783]
[1768065989546,0.01102074,90753.0,90741.0,0.04809746]
[1768065991519,0.02203965,90753.0,90741.0,0.04809746]
[1768065993921,0.01101904,90752.0,90741.0,0.04809746]
[1768065994422,0.02203965,90753.0,90741.0,0.04809746]
[1768065994975,0.01101904,90752.0,90741.0,0.04809746]
[1768065995529,0.02203965,90753.0,90741.0,0.04805227]
[1768065997038,0.01101904,90752.0,90741.0,0.04805227]
[1768065997418,0.02203965,90753.0,90741.0,0.04805227]
[1768066000748,0.01101904,90752.0,90741.0,0.04805227]
[1768066001103,0.01101916,90751.0,90741.0,0.04805227]
[1768066002183,0.01101904,90752.0,90741.0,0.04805227]
[1768066003985,0.02203965,90753.0,90741.0,0.04805227]
[1768066008929,0.01101904,90752.0,90741.0,0.04805227]
[1768066009553,0.01101904,90752.0,90741.0,0.04800709]
[1768066009703,0.02203965,90753.0,90741.0,0.04800709]
[1768066011348,0.01101904,90752.0,90741.0,0.04800709]
[1768066013493,0.02203965,90753.0,90741.0,0.04800709]
[1768066015643,0.01101904,90752.0,90741.0,0.04800709]
[1768066015892,0.01101916,90751.0,90741.0,0.04800709]
[1768066016024,0.01101904,90752.0,90741.0,0.04800709]
[1768066017712,0.01101904,90752.0,90741.0,0.04796191]
[1768066018265,0.01101916,90751.0,90741.0,0.04796191]
[1768066018874,0.01101904,90752.0,90741.0,0.04796191]
[1768066019176,0.01019797,90752.0,90741.0,0.04796191]
[1768066022388,0.02203965,90753.0,90741.0,2.04796191]
[1768066022952,0.02203965,90753.0,90741.0,2.04791673]
[1768066023592,0.01101904,90752.0,90741.0,2.04791673]
[1768066024100,0.02203965,90753.0,90741.0,2.04791673]
[1768066027334,0.01101904,90752.0,90741.0,2.04791673]
[1768066027770,0.02203965,90753.0,90741.0,2.04791673]
[1768066028809,0.01101904,90752.0,90741.0,2.04791673]
[1768066029349,0.02203965,90753.0,90741.0,2.04791673]
[1768066030058,0.02203965,90753.0,90741.0,2.04787155]
[1768066030530,0.01102074,90753.0,90741.0,2.04787155]
[1768066031170,0.01101904,90752.0,90741.0,2.04787155]
[1768066031304,0.02203965,90753.0,90741.0,2.04787155]
[1768066032318,0.01101904,90752.0,90741.0,2.04787155]
[1768066032494,0.02203965,90753.0,90741.0,2.04787155]
[1768066033191,0.01101916,90751.0,90741.0,2.04787155]
[1768066039679,0.01101904,90752.0,90741.0,2.04787155]
[1768066039886,0.01101916,90751.0,90741.0,2.04787155]
[1768066040034,0.01101904,90752.0,90741.0,2.04787155]
[1768066040236,0.01101904,90752.0,90741.0,2.0]
[1768066040438,0.05947,90751.0,90741.0,2.0]
[1768066041213,0.01101928,90750.0,90741.0,2.0]
[1768066046097,0.04845084,90751.0,90741.0,2.0]
[1768066046298,0.01101916,90751.0,90741.0,2.0]
[1768066046813,0.01101928,90750.0,90741.0,2.0]
[1768066047039,0.01101916,90751.0,90741.0,2.0]
[1768066048697,0.01101904,90752.0,90741.0,2.0]
[1768066049128,0.01101904,90752.0,90741.0,2.04503217]
[1768066050236,0.02203965,90753.0,90741.0,2.04503217]
[1768066053240,0.01101904,90752.0,90741.0,2.04503217]
[1768066054045,0.02203965,90753.0,90741.0,2.04503217]
[1768066054464,0.01101904,90752.0,90741.0,2.04503217]
[1768066055766,0.01101916,90751.0,90741.0,2.04503217]
[1768066056259,0.01101904,90752.0,90741.0,2.04503217]
[1768066057861,0.01101916,90751.0,90741.0,2.04503217]
[1768066059296,0.01101904,90752.0,90741.0,2.04503217]
[1768066064068,0.01101928,90750.0,90741.0,2.04503217]
[1768066064628,0.01101916,90751.0,90741.0,2.04503217]
[1768066066071,0.01101904,90752.0,90741.0,2.04503217]
[1768066070803,0.01101916,90751.0,90741.0,2.04503217]
[1768066071747,0.01101904,90752.0,90741.0,2.04503217]
[1768066077943,0.02203965,90753.0,90741.0,2.04503217]
[1768066079249,0.01101904,90752.0,90741.0,2.04503217]
[1768066079624,0.01102074,90753.0,90741.0,2.04503217]
[1768066079990,0.02203965,90753.0,90741.0,2.04503217]
[1768066080613,0.01101904,90752.0,90741.0,2.04503217]
[1768066080754,0.02203965,90753.0,90741.0,2.04503217]
[1768066081214,0.02203965,90753.0,90741.0,2.0]
[1768066083595,0.01101904,90752.0,90741.0,2.0]
[1768066084119,0.01101916,90751.0,90741.0,2.0]
[1768066084501,0.01101916,90751.0,90741.0,2.0476416]
[1768066084709,0.01101904,90752.0,90741.0,2.0476416]
[1768066085043,0.01101916,90751.0,90741.0,2.0476416]
[1768066085275,0.01101904,90752.0,90741.0,2.0476416]
[1768066086251,0.01101916,90751.0,90741.0,2.0476416]
[1768066089405,0.02203965,90753.0,90741.0,2.0476416]
[1768066089880,0.01101879,90754.0,90741.0,2.0476416]
[1768066090059,0.03307317,90753.0,90741.0,2.0476416]
[1768066092535,0.04409208,90753.0,90741.0,2.0476416]
[1768066097875,0.03307317,90753.0,90741.0,2.0476416]
[1768066099516,0.04409208,90753.0,90741.0,2.0476416]
[1768066100498,0.03307317,90753.0,90741.0,2.0476416]
[1768066101746,0.04409208,90753.0,90741.0,2.0476416]
[1768066103818,0.01101904,90752.0,90741.0,2.0476416]
[1768066103975,0.04409208,90753.0,90741.0,2.0476416]
[1768066105019,0.01101904,90752.0,90741.0,2.0476416]
[1768066105224,0.04409208,90753.0,90741.0,2.0476416]
[1768066107446,0.01101904,90752.0,90741.0,2.0476416]
[1768066108046,0.04409208,90753.0,90741.0,2.0476416]
[1768066111678,0.01101904,90752.0,90741.0,2.0476416]
[1768066111882,0.01101916,90751.0,90741.0,2.0476416]
[1768066112048,0.01101904,90752.0,90741.0,2.0476416]
[1768066112591,0.04409208,90753.0,90741.0,2.0476416]
[1768066119263,0.01101904,90752.0,90741.0,2.0476416]
[1768066123482,0.01101916,90751.0,90741.0,2.0476416]
[1768066124062,0.01101904,90752.0,90741.0,2.0476416]
[1768066124269,0.04409208,90753.0,90741.0,2.0476416]
[1768066125091,0.01101904,90752.0,90741.0,2.0476416]
[1768066125495,0.04409208,90753.0,90741.0,2.0476416]
[1768066127559,0.03307317,90753.0,90741.0,2.0476416]
[1768066127940,0.01101904,90752.0,90741.0,2.0476416]
[1768066128932,0.04409208,90753.0,90741.0,2.0476416]
[1768066132237,0.01101891,90753.0,90741.0,2.0476416]
[1768066132435,0.01101879,90754.0,90741.0,2.0476416]
[1768066132758,0.01101891,90753.0,90741.0,2.0476416]
[1768066133721,0.01101916,90751.0,90741.0,2.0476416]
[1768066136967,0.01101904,90752.0,90741.0,2.0476416]
[1768066137507,0.01101928,90750.0,90741.0,2.0476416]
[1768066137671,0.0110194,90749.0,90741.0,2.0476416]
[1768066137876,0.01101928,90750.0,90741.0,2.0476416]
[1768066138416,0.01101928,90750.0,90741.0,2.0]
[1768066140492,0.01101916,90751.0,90741.0,2.0]
[1768066140654,0.01101928,90750.0,90741.0,2.0]
[1768066141855,0.05756602,90751.0,90741.0,2.0]
[1768066142453,0.01101928,90750.0,90741.0,2.0]
[1768066142659,0.05756602,90751.0,90741.0,2.0]
[1768066143336,0.04654686,90751.0,90741.0,1.99995483]
[1768066143668,0.01101916,90751.0,90741.0,1.99995483]
[1768066145066,0.01101928,90750.0,90741.0,1.99995483]
[1768066145873,0.01101916,90751.0,90741.0,1.99995483]
[1768066150052,0.01101928,90750.0,90741.0,1.99990967]
[1768066150794,0.01101916,90751.0,90741.0,1.99990967]
[1768066152648,0.01101928,90750.0,90741.0,1.99990967]
[1768066153261,0.01101916,90751.0,90741.0,1.99990967]
[1768066153756,0.01101928,90750.0,90741.0,1.99990967]
[1768066154560,0.01101916,90751.0,90741.0,1.99990967]
[1768066155704,0.01101928,90750.0,90741.0,1.99990967]
[1768066157306,0.01101928,90750.0,90741.0,1.99986451]
[1768066157816,0.01101916,90751.0,90741.0,1.99986451]
[1768066158918,0.01101916,90751.0,90741.0,2.04944069]
[1768066159537,0.01101904,90752.0,90741.0,2.04944069]
[1768066159893,0.01101916,90751.0,90741.0,2.04944069]
[1768066160722,0.01101904,90752.0,90741.0,2.04944069]
[1768066162748,0.01101916,90751.0,90741.0,2.04944069]
[1768066164464,0.01101904,90752.0,90741.0,2.04944069]
[1768066164631,0.01101916,90751.0,90741.0,2.04944069]
[1768066167724,0.01101916,90751.0,90741.0,1.99986451]
[1768066169001,0.01101928,90750.0,90741.0,1.99986451]
[1768066171915,0.05911041,90751.0,90741.0,1.99986451]
[1768066173088,0.01101916,90751.0,90741.0,2.04944069]
[1768066173509,0.01101928,90750.0,90741.0,2.04944069]
[1768066173678,0.01101916,90751.0,90741.0,2.04944069]
[1768066174623,0.01101928,90750.0,90741.0,2.04944069]
[1768066174896,0.01101928,90750.0,90741.0,1.99986451]
[1768066175323,0.01101928,90750.0,90742.0,0.04688842]
[1768066177930,0.01101916,90751.0,90742.0,0.04688842]
[1768066178356,0.01101928,90750.0,90742.0,0.04688842]
[1768066179258,0.01101916,90751.0,90742.0,0.04688842]
[1768066180358,0.01101928,90750.0,90742.0,0.04688842]
[1768066188439,0.01101916,90751.0,90742.0,0.04688842]
[1768066188587,0.01101928,90750.0,90742.0,0.04688842]
[1768066188791,0.01101916,90751.0,90742.0,0.04688842]
[1768066192602,0.01101928,90750.0,90742.0,0.04688842]
[1768066194611,0.01101916,90751.0,90742.0,0.04688842]
[1768066196151,0.01101904,90752.0,90742.0,0.04688842]
[1768066199619,0.01101891,90753.0,90742.0,0.04688842]
[1768066200447,0.01101904,90752.0,90742.0,0.04688842]
[1768066202499,0.01101928,90750.0,90742.0,0.04688842]
[1768066202697,0.01101916,90751.0,90742.0,0.04688842]
[1768066203236,0.01101928,90750.0,90742.0,0.04688842]
[1768066203648,0.01101916,90751.0,90742.0,0.04688842]
[1768066204363,0.02203795,90754.0,90742.0,0.04688842]
[1768066204683,0.02204,90753.0,90742.0,0.04688842]
[1768066206219,0.03305891,90753.0,90742.0,0.04688842]
[1768066207431,0.02204,90753.0,90742.0,0.04688842]
[1768066209155,0.01101904,90752.0,90742.0,0.04688842]
[1768066209516,0.03305891,90753.0,90742.0,0.04688842]
[1768066212451,0.01101904,90752.0,90742.0,0.04688842]
[1768066214076,0.01101916,90751.0,90742.0,0.04688842]
[1768066214406,0.01101904,90752.0,90742.0,0.04688842]
[1768066214786,0.01101916,90751.0,90742.0,0.04688842]
[1768066215083,0.01101904,90752.0,90742.0,0.04688842]
[1768066215386,0.01101916,90751.0,90742.0,0.04688842]
[1768066215844,0.01101904,90752.0,90742.0,0.04688842]
[1768066218935,0.04792568,90751.0,90741.0,1.99986451]
[1768066223370,0.03305891,90753.0,90741.0,1.99986451]
[1768066223751,0.03305891,90753.0,90742.0,0.04726059]
[1768066225214,0.02204,90753.0,90742.0,0.04726059]
[1768066225542,0.03305891,90753.0,90742.0,0.04726059]
[1768066226090,0.02204,90753.0,90742.0,0.04726059]
[1768066226689,0.03305891,90753.0,90742.0,0.04726059]
[1768066228827,0.01101904,90752.0,90742.0,0.04726059]
[1768066232038,0.01101904,90752.0,90741.0,1.99986451]
[1768066233122,0.03305891,90753.0,90741.0,1.99986451]
[1768066233736,0.01101904,90752.0,90741.0,1.99986451]
[1768066234241,0.03305891,90753.0,90741.0,1.99986451]
[1768066236037,0.01101904,90752.0,90741.0,1.99986451]
[1768066236395,0.03305891,90753.0,90741.0,1.99986451]
[1768066237154,0.02204,90753.0,90742.0,0.04509334]
[1768066237336,0.03305891,90753.0,90742.0,0.04509334]
[1768066237539,0.01101904,90752.0,90742.0,0.04509334]
[1768066237723,0.03305891,90753.0,90742.0,0.04509334]
[1768066240460,0.02204,90753.0,90742.0,0.04509334]
[1768066240873,0.03305891,90753.0,90742.0,0.04509334]
[1768066241082,0.02204,90753.0,90742.0,0.04509334]
[1768066243377,0.03305891,90753.0,90742.0,0.04509334]
[1768066247158,0.01101904,90752.0,90742.0,0.04509334]
[1768066248858,0.01101904,90752.0,90741.0,1.99986451]
[1768066249058,0.04636729,90751.0,90741.0,1.99986451]
[1768066253073,0.04636729,90751.0,90741.0,0.99986451]
[1768066253533,0.01101904,90752.0,90741.0,0.99986451]
[1768066254013,0.01101904,90752.0,90742.0,0.04909056]
[1768066254155,0.01101916,90751.0,90742.0,0.04909056]
[1768066254531,0.06613208,90753.0,90742.0,0.04909056]
[1768066256531,0.12122675,90753.0,90742.0,0.04909056]
[1768066256935,0.01101904,90752.0,90742.0,0.04909056]
[1768066263996,0.01101916,90751.0,90742.0,0.04909056]
[1768066275102,0.04998046,90746.0,90741.0,0.4061385]
[1768066275269,0.05510674,90733.0,90732.0,6.204e-05]
[1768066275542,0.01102219,90726.0,90718.0,0.0451913]
[1768066275754,0.02208,90725.0,90718.0,0.0451913]
[1768066276450,0.02208,90725.0,90723.0,3e-07]
[1768066277741,0.02208,90725.0,90718.0,0.04513703]
[1768066277742,0.03308335,90724.0,90718.0,0.04513703]
[1768066278808,0.03308335,90724.0,90710.0,0.01102414]
[1768066279017,5.427e-05,90723.0,90710.0,0.01102414]
[1768066279230,0.03308335,90724.0,90715.0,0.0451913]
[1768066279448,0.02208,90725.0,90715.0,0.0451913]
[1768066279449,0.03310232,90725.0,90715.0,0.0451913]
[1768066279662,0.03310232,90725.0,90715.0,0.04318729]
[1768066279867,0.03308335,90724.0,90715.0,0.04063619]
[1768066293249,0.04410579,90724.0,90715.0,0.04063619]
[1768066293622,0.01102244,90724.0,90715.0,0.04063619]
[1768066293829,0.03308335,90723.0,90715.0,0.04063619]
[1768066295693,0.04410591,90723.0,90715.0,0.04063619]
[1768066296078,0.01102256,90723.0,90715.0,0.04063619]
[1768066296456,0.03308335,90722.0,90715.0,0.04063619]
[1768066296649,0.04410603,90722.0,90715.0,0.04063619]
[1768066297538,0.03308335,90722.0,90715.0,0.04063619]
[1768066298070,0.04410603,90722.0,90715.0,0.04063619]
[1768066298960,0.04410603,90722.0,90707.0,0.0110245]
[1768066298961,0.03308335,90722.0,90708.0,0.04788608]
[1768066299259,0.000336,90715.0,90708.0,0.04788608]
[1768066299555,0.022416,90715.0,90708.0,0.04788608]
[1768066299987,0.03343917,90715.0,90708.0,0.04788608]
[1768066300752,0.03244017,90715.0,90708.0,0.04788608]
[1768066301311,0.03244017,90715.0,90714.0,0.00010675]
[1768066303680,0.021417,90715.0,90708.0,0.04788608]
[1768066307515,0.021417,90715.0,90708.0,0.05891046]
[1768066307906,0.021417,90715.0,90708.0,0.04788608]
[1768066308591,0.021417,90715.0,90708.0,0.05891046]
[1768066308807,0.021417,90715.0,90707.0,0.0110245]
[1768066309027,0.00460938,90714.0,90707.0,0.0110245]
[1768066309282,0.00460938,90714.0,90706.0,0.01102462]
[1768066309619,0.021417,90715.0,90707.0,0.05891058]
[1768066311717,0.021417,90715.0,90709.0,0.04788608]
[1768066315874,0.021417,90715.0,90709.0,0.04792873]
[1768066327439,0.021417,90715.0,90709.0,0.04788358]
[1768066334213,0.021417,90715.0,90709.0,4.265e-05]
[1768066335515,0.021417,90715.0,90709.0,0.04918541]
[1768066339736,0.021417,90715.0,90709.0,0.04914026]
[1768066340324,0.03244053,90715.0,90709.0,0.04914026]
[1768066341172,0.03244053,90715.0,90705.0,0.0001519]
[1768066341680,0.021417,90715.0,90705.0,0.0001519]
[1768066345186,0.03244053,90715.0,90705.0,0.0001519]
[1768066345390,0.021417,90715.0,90705.0,0.0001519]
[1768066346353,0.021417,90715.0,90706.0,0.04914276]
[1768066347246,0.03244053,90715.0,90706.0,0.04914276]
[1768066347632,0.021417,90715.0,90706.0,0.04914276]
[1768066351221,0.021417,90715.0,90705.0,0.0001519]
[1768066351222,0.000999,90706.0,90705.0,0.0001519]
[1768066351428,0.0230231,90706.0,90705.0,0.0001519]
[1768066351676,0.02208,90706.0,90705.0,0.00010675]
[1768066352432,0.02208,90706.0,90705.0,7.5e-07]
[1768066355856,0.021918,90706.0,90705.0,7.5e-07]
[1768066368683,0.06976668,90706.0,90705.0,7.5e-07]
[1768066370531,0.021918,90706.0,90705.0,7.5e-07]
[1768066378683,0.021918,90706.0,90705.0,7.5e-07]
[1768066379642,0.02208,90706.0,90705.0,7.5e-07]
[1768066381656,0.01102341,90716.0,90705.0,0.04505914]
[1768066381922,0.01102341,90716.0,90705.0,0.04495748]
[1768066382101,0.03310353,90715.0,90705.0,0.04495748]
[1768066382304,0.01102365,90714.0,90705.0,0.04495748]
[1768066382511,0.03310353,90715.0,90705.0,0.04495748]
[1768066382720,0.02208,90715.0,90705.0,0.04495748]
[1768066382927,0.03310353,90715.0,90705.0,0.04495748]
[1768066383415,0.02208,90714.0,90705.0,0.04495748]
[1768066384768,0.02208,90713.0,90705.0,0.04495748]
[1768066385727,0.02208,90712.0,90705.0,0.04495748]
[1768066385925,0.03310389,90712.0,90705.0,0.04495748]
[1768066386154,0.02208,90712.0,90705.0,0.04495748]
[1768066387166,0.03310389,90712.0,90705.0,0.04495748]
[1768066387761,0.01102389,90712.0,90705.0,0.04495748]
[1768066388087,0.02208,90711.0,90705.0,0.04495748]
[1768066389436,0.02208,90710.0,90705.0,0.04495748]
[1768066391024,0.02208,90709.0,90705.0,0.04495748]
[1768066391853,0.01102365,90714.0,90705.0,0.04495748]
[1768066392110,0.02208,90713.0,90705.0,0.04495748]
[1768066393311,0.03310377,90713.0,90705.0,0.04495748]
[1768066395115,0.01102389,90712.0,90705.0,0.04495748]
[1768066396252,0.03310377,90713.0,90705.0,0.04495748]
[1768066397526,0.02208,90713.0,90705.0,0.04495748]
[1768066398362,0.01102377,90713.0,90705.0,0.04495748]
[1768066398605,0.04521352,90711.0,90699.0,0.01102547]
[1768066398993,0.02208,90710.0,90699.0,0.01102547]
[1768066399157,0.04521352,90709.0,90699.0,0.01102547]
[1768066401163,0.04521352,90709.0,90700.0,0.01102535]
[1768066401953,0.04521352,90709.0,90699.0,0.01102547]
[1768066402188,0.04521352,90709.0,90700.0,0.01102535]
[1768066402360,0.04521352,90709.0,90699.0,0.01102547]
[1768066402361,0.02208,90710.0,90697.0,0.01102572]
[1768066402692,0.02208,90710.0,90698.0,0.0110256]
[1768066402866,0.02208,90710.0,90699.0,0.05918329]
[1768066403571,0.02208,90710.0,90699.0,0.04815782]
[1768066403724,0.02208,90710.0,90699.0,0.05918329]
[1768066403922,0.02208,90710.0,90699.0,0.04815782]
[1768066404132,0.02208,90710.0,90699.0,0.05918329]
[1768066404446,0.02208,90710.0,90701.0,0.04815782]
[1768066417590,0.02208,90710.0,90701.0,0.04811268]
[1768066418579,0.03310414,90710.0,90701.0,0.04811268]
[1768066418950,0.02208,90710.0,90701.0,0.04846475]
[1768066419576,0.03310414,90710.0,90701.0,0.04846475]
[1768066419794,0.02208,90710.0,90701.0,0.04846475]
[1768066425373,0.02197271,90710.0,90701.0,0.04846475]
[1768066439445,0.02197271,90710.0,90701.0,0.00035207]
[1768066445156,0.02197271,90710.0,90701.0,0.04930884]
[1768066452218,0.03299685,90710.0,90701.0,0.04930884]
[1768066453570,0.02197271,90710.0,90701.0,0.04930884]
[1768066453763,0.01975948,90710.0,90701.0,0.04930884]
[1768066466653,0.03078362,90710.0,90701.0,0.04930884]
[1768066468988,0.01975948,90710.0,90701.0,0.04930884]
[1768066477189,0.03078362,90710.0,90701.0,0.04930884]
[1768066477522,0.01975948,90710.0,90701.0,0.04930884]
[1768066482935,0.03078362,90710.0,90701.0,0.04930884]
[1768066484454,0.01102426,90709.0,90701.0,0.04930884]
[1768066485063,0.03078362,90710.0,90701.0,0.04930884]
[1768066486873,0.01102426,90709.0,90701.0,0.04902047]
[1768066487936,0.01102438,90708.0,90701.0,0.04902047]
[1768066488073,0.01102426,90709.0,90701.0,0.04902047]
[1768066490328,0.03078362,90710.0,90701.0,0.04902047]
[1768066491914,0.03078362,90710.0,90701.0,0.04897533]
[1768066494098,0.03078362,90710.0,90701.0,0.04893019]
[1768066496670,0.03308824,90709.0,90701.0,0.04893019]
[1768066499946,0.04710756,90700.0,90696.0,0.0001519]
[1768066500149,0.08739261,90699.0,90696.0,0.0001519]
[1768066500357,0.0581334,90696.0,90679.0,0.01102791]
[1768066500566,0.04710756,90696.0,90679.0,0.01102791]
[1768066500780,0.04710756,90690.0,90678.0,0.0001519]
[1768066500992,0.04710756,90687.0,90678.0,0.0001519]
[1768066501185,0.04705326,90687.0,90678.0,0.0001519]
[1768066501405,0.03310669,90689.0,90678.0,0.0001519]
[1768066501579,0.02208,90689.0,90678.0,0.0001519]
[1768066502563,0.02208,90689.0,90678.0,0.04665473]
[1768066503757,0.02208,90689.0,90678.0,0.05768276]
[1768066503913,0.02208,90689.0,90678.0,0.04665473]
[1768066504101,0.02208,90689.0,90678.0,0.05768276]
[1768066504302,0.02208,90689.0,90678.0,0.04665473]
[1768066504912,0.02208,90689.0,90678.0,0.05768276]
[1768066505123,0.02208,90689.0,90678.0,0.04665473]
[1768066505997,0.02208,90689.0,90678.0,0.05768276]
[1768066508629,0.02208,90689.0,90678.0,0.04665473]
[1768066508795,0.02208,90689.0,90678.0,0.05768276]
[1768066509378,0.02208,90689.0,90678.0,0.04665473]
[1768066510534,0.02208,90689.0,90678.0,0.05768276]
[1768066510911,0.01102827,90690.0,90681.0,0.04843074]
[1768066511153,0.03310827,90690.0,90681.0,0.04843074]
[1768066512988,0.03310827,90690.0,90680.0,0.01102779]
[1768066513725,0.03310827,90690.0,90679.0,0.01102791]
[1768066514753,0.03310827,90690.0,90678.0,0.01117993]
[1768066515676,0.03310827,90690.0,90679.0,0.01102791]
[1768066516490,0.03310827,90690.0,90680.0,0.01102779]
[1768066516690,0.03310827,90690.0,90678.0,0.01117993]
[1768066516895,0.03310827,90690.0,90679.0,0.01102791]
[1768066518223,0.03310827,90690.0,90679.0,0.05945865]
[1768066519215,0.03310827,90690.0,90680.0,0.05945853]
[1768066519416,0.02208,90693.0,90684.0,0.05945804]
[1768066519616,0.02208,90693.0,90688.0,0.04843074]
[1768066519957,0.02208,90693.0,90687.0,0.01102693]
[1768066520151,0.02208,90693.0,90685.0,0.0551359]
[1768066520152,0.02243159,90693.0,90686.0,0.01102706]
[1768066520553,0.02243159,90693.0,90687.0,0.01102693]
[1768066521058,0.02243159,90693.0,90685.0,0.01102718]
[1768066521256,0.02243159,90693.0,90686.0,0.01102706]
[1768066521774,0.00035159,90693.0,90686.0,0.01102706]
[1768066522367,0.00035159,90693.0,90685.0,0.01102718]
[1768066522617,0.00035159,90693.0,90686.0,0.01102706]
[1768066523432,0.00035159,90693.0,90686.0,0.0594578]
[1768066523608,0.00035159,90693.0,90687.0,0.01102693]
[1768066524583,0.00035159,90693.0,90686.0,0.0594578]
[1768066525265,0.00035159,90693.0,90687.0,0.01102693]
[1768066525661,0.00035159,90693.0,90686.0,0.01102706]
[1768066526036,0.00035159,90693.0,90687.0,0.01102693]
[1768066528169,0.00035159,90693.0,90686.0,0.01102706]
[1768066529048,0.00035159,90693.0,90687.0,0.01102693]
[1768066529248,0.00035159,90693.0,90686.0,0.01102706]
[1768066529696,0.00035159,90693.0,90687.0,0.01102693]
[1768066531219,0.00035159,90693.0,90686.0,0.01102706]
[1768066531790,0.00035159,90693.0,90687.0,0.01102693]
[1768066533606,0.00035159,90693.0,90688.0,0.01102681]
[1768066533812,0.00035159,90693.0,90689.0,0.01102669]
[1768066534029,0.00035159,90693.0,90688.0,0.01102681]
[1768066534238,0.04890775,90693.0,90688.0,0.01102681]
[1768066538183,0.0110273,90696.0,90689.0,0.01102669]
[1768066538356,0.033017,90696.0,90689.0,6.982e-05]
[1768066538559,0.033017,90696.0,90688.0,0.01102681]
[1768066539193,0.033017,90696.0,90686.0,0.01102706]
[1768066539513,0.033017,90696.0,90688.0,0.01102681]
[1768066539741,0.033017,90696.0,90686.0,0.01102706]
[1768066540353,0.033017,90696.0,90687.0,0.01102693]
[1768066540503,0.033017,90696.0,90688.0,0.01102681]
[1768066541240,0.033017,90696.0,90687.0,0.01102693]
[1768066542704,0.033017,90696.0,90688.0,0.01102681]
[1768066543679,0.033017,90696.0,90687.0,0.01102693]
[1768066544179,0.033017,90696.0,90688.0,0.01102681]
[1768066544943,0.033017,90696.0,90687.0,0.01102693]
[1768066545189,0.033017,90696.0,90685.0,0.04625788]
[1768066545395,0.033017,90696.0,90686.0,0.01102706]
[1768066545567,0.033017,90696.0,90685.0,0.05728506]
[1768066546350,0.033017,90696.0,90687.0,0.01102693]